[Event "Titled Tuesday Blitz July 4 Late 2023"]
[White "Tqebuchava, Zurab"]
[Black "Broca Jimenez, Fernando"]
[WhiteFideId "13601113"]
[BlackFideId "5104742"]
[WhiteElo "2045"]
[BlackElo "2213"]
[Result "1-0"]
[Round "10"]
[TimeControl "180+2"]
[Date "2023.07.04"]
[WhiteClock "0:00:47"]
[BlackClock "0:00:04"]
[Board "119"]

1. e4 {[%clk 0:03:00]}  e5 {[%clk 0:03:00]} 2. Nf3 {[%clk 0:02:59]}  Nc6 {[%clk 0:03:00]} 3. c3 {[%clk 0:02:58]}  d5 {[%clk 0:02:59]} 4. Qa4 {[%clk 0:02:44]}  Bd7 {[%clk 0:01:55]} 5. exd5 {[%clk 0:02:30]}  Nd4 {[%clk 0:01:54]} 6. Qd1 {[%clk 0:02:27]}  Nxf3+ {[%clk 0:01:53]} 7. Qxf3 {[%clk 0:02:27]}  c6 {[%clk 0:01:54]} 8. Bc4 {[%clk 0:02:21]}  Nf6 {[%clk 0:01:52]} 9. O-O {[%clk 0:02:00]}  cxd5 {[%clk 0:01:40]} 10. Bb3 {[%clk 0:01:58]}  Bc6 {[%clk 0:01:24]} 11. d4 {[%clk 0:01:52]}  e4 {[%clk 0:01:21]} 12. Qe2 {[%clk 0:01:46]}  Bd6 {[%clk 0:01:09]} 13. Bg5 {[%clk 0:01:41]}  h6 {[%clk 0:01:05]} 14. Bh4 {[%clk 0:01:41]}  O-O {[%clk 0:01:05]} 15. Bg3 {[%clk 0:01:41]}  Re8 {[%clk 0:00:59]} 16. Bxd6 {[%clk 0:01:36]}  Qxd6 {[%clk 0:01:00]} 17. Nd2 {[%clk 0:01:23]}  Re7 {[%clk 0:00:58]} 18. Rfe1 {[%clk 0:01:22]}  Rae8 {[%clk 0:00:58]} 19. Nf1 {[%clk 0:01:22]}  a6 {[%clk 0:00:46]} 20. Ne3 {[%clk 0:01:20]}  Bb5 {[%clk 0:00:35]} 21. Nf5 {[%clk 0:00:51]}  Bxe2 {[%clk 0:00:11]} 22. Nxd6 {[%clk 0:00:50]}  Rd7 {[%clk 0:00:12]} 23. Nxe8 {[%clk 0:00:46]}  Nxe8 {[%clk 0:00:04]} 24. Rxe2 {[%clk 0:00:47]} 1-0


[Site "https://www.chess.com"]

[Event "Titled Tuesday Blitz July 4 Late 2023"]
[White "Carlsen, Magnus"]
[Black "Bortnyk, Olexandr"]
[WhiteFideId "1503014"]
[BlackFideId "14120828"]
[WhiteElo "3281"]
[BlackElo "3047"]
[Result "1-0"]
[Round "11"]
[TimeControl "180+2"]
[Date "2023.07.04"]
[WhiteClock "0:00:53"]
[BlackClock "0:00:03"]
[Board "1"]

1. b3 {[%clk 0:03:00]}  d5 {[%clk 0:02:57]} 2. Bb2 {[%clk 0:03:01]}  Bf5 {[%clk 0:02:57]} 3. Nf3 {[%clk 0:03:00]}  e6 {[%clk 0:02:57]} 4. g3 {[%clk 0:03:00]}  Nf6 {[%clk 0:02:56]} 5. Bg2 {[%clk 0:03:00]}  Be7 {[%clk 0:02:57]} 6. O-O {[%clk 0:03:00]}  h6 {[%clk 0:02:56]} 7. d3 {[%clk 0:03:01]}  O-O {[%clk 0:02:54]} 8. Nbd2 {[%clk 0:03:02]}  Bh7 {[%clk 0:02:53]} 9. c4 {[%clk 0:02:59]}  c6 {[%clk 0:02:53]} 10. a3 {[%clk 0:02:58]}  a5 {[%clk 0:02:51]} 11. Ra2 {[%clk 0:02:57]}  Nfd7 {[%clk 0:02:45]} 12. Qa1 {[%clk 0:02:57]}  Bf6 {[%clk 0:02:46]} 13. Bxf6 {[%clk 0:02:57]}  Qxf6 {[%clk 0:02:46]} 14. Qxf6 {[%clk 0:02:56]}  Nxf6 {[%clk 0:02:46]} 15. Rc1 {[%clk 0:02:53]}  Na6 {[%clk 0:02:43]} 16. Rb2 {[%clk 0:02:52]}  Rfd8 {[%clk 0:02:25]} 17. Ne5 {[%clk 0:02:47]}  Nd7 {[%clk 0:02:12]} 18. Nxd7 {[%clk 0:02:47]}  Rxd7 {[%clk 0:02:13]} 19. f4 {[%clk 0:02:44]}  Kf8 {[%clk 0:02:09]} 20. b4 {[%clk 0:02:44]}  axb4 {[%clk 0:02:08]} 21. axb4 {[%clk 0:02:45]}  Nc7 {[%clk 0:02:09]} 22. b5 {[%clk 0:02:30]}  cxb5 {[%clk 0:02:01]} 23. cxd5 {[%clk 0:02:30]}  Nxd5 {[%clk 0:01:49]} 24. Rxb5 {[%clk 0:02:29]}  Ra2 {[%clk 0:01:47]} 25. Bxd5 {[%clk 0:02:29]}  exd5 {[%clk 0:01:36]} 26. Rd1 {[%clk 0:02:21]}  Bf5 {[%clk 0:01:26]} 27. Kf2 {[%clk 0:02:21]}  Bg4 {[%clk 0:01:22]} 28. Nf3 {[%clk 0:02:18]}  Re7 {[%clk 0:01:15]} 29. Re1 {[%clk 0:02:14]}  Bxf3 {[%clk 0:00:56]} 30. Kxf3 {[%clk 0:02:15]}  d4 {[%clk 0:00:57]} 31. Re5 {[%clk 0:02:15]}  Rxe5 {[%clk 0:00:57]} 32. fxe5 {[%clk 0:02:16]}  Ke7 {[%clk 0:00:58]} 33. Rb1 {[%clk 0:02:12]}  Ke6 {[%clk 0:00:46]} 34. Rxb7 {[%clk 0:02:12]}  h5 {[%clk 0:00:43]} 35. Rb4 {[%clk 0:02:00]}  h4 {[%clk 0:00:27]} 36. Rxd4 {[%clk 0:01:54]}  hxg3 {[%clk 0:00:28]} 37. hxg3 {[%clk 0:01:55]}  Kxe5 {[%clk 0:00:28]} 38. Rd7 {[%clk 0:01:48]}  Ke6 {[%clk 0:00:28]} 39. Rb7 {[%clk 0:01:48]}  Ra4 {[%clk 0:00:24]} 40. e3 {[%clk 0:01:46]}  Ra1 {[%clk 0:00:16]} 41. d4 {[%clk 0:01:44]}  Rf1+ {[%clk 0:00:16]} 42. Ke2 {[%clk 0:01:42]}  Rg1 {[%clk 0:00:14]} 43. Kf2 {[%clk 0:01:42]}  Ra1 {[%clk 0:00:15]} 44. g4 {[%clk 0:01:43]}  g6 {[%clk 0:00:09]} 45. Kf3 {[%clk 0:01:42]}  Rf1+ {[%clk 0:00:02]} 46. Kg2 {[%clk 0:01:40]}  Re1 {[%clk 0:00:02]} 47. Kf2 {[%clk 0:01:40]}  Ra1 {[%clk 0:00:03]} 48. Rb6+ {[%clk 0:01:40]}  Ke7 {[%clk 0:00:02]} 49. Rb5 {[%clk 0:01:40]}  Ra2+ {[%clk 0:00:01]} 50. Kf3 {[%clk 0:01:40]}  Ra1 {[%clk 0:00:02]} 51. g5 {[%clk 0:01:35]}  Rg1 {[%clk 0:00:02]} 52. e4 {[%clk 0:01:34]}  Rf1+ {[%clk 0:00:01]} 53. Ke3 {[%clk 0:01:35]}  Rg1 {[%clk 0:00:01]} 54. Kf4 {[%clk 0:01:34]}  Rg2 {[%clk 0:00:01]} 55. Rb7+ {[%clk 0:01:32]}  Ke8 {[%clk 0:00:01]} 56. d5 {[%clk 0:01:32]}  Rg1 {[%clk 0:00:01]} 57. d6 {[%clk 0:01:25]}  Rd1 {[%clk 0:00:01]} 58. Ke5 {[%clk 0:01:10]}  Rf1 {[%clk 0:00:02]} 59. Re7+ {[%clk 0:01:05]}  Kd8 {[%clk 0:00:02]} 60. Kd5 {[%clk 0:01:04]}  Rd1+ {[%clk 0:00:02]} 61. Kc5 {[%clk 0:01:04]}  Rc1+ {[%clk 0:00:02]} 62. Kb4 {[%clk 0:01:04]}  Rb1+ {[%clk 0:00:03]} 63. Kc3 {[%clk 0:01:04]}  Rd1 {[%clk 0:00:01]} 64. Rxf7 {[%clk 0:00:50]}  Rxd6 {[%clk 0:00:01]} 65. Rf6 {[%clk 0:00:50]}  Ke7 {[%clk 0:00:02]} 66. Rxd6 {[%clk 0:00:50]}  Kxd6 {[%clk 0:00:03]} 67. Kd4 {[%clk 0:00:50]}  Ke6 {[%clk 0:00:03]} 68. e5 {[%clk 0:00:50]}  Kf5 {[%clk 0:00:03]} 69. Kd5 {[%clk 0:00:51]}  Kxg5 {[%clk 0:00:04]} 70. e6 {[%clk 0:00:52]}  Kf6 {[%clk 0:00:03]} 71. Kd6 {[%clk 0:00:52]}  g5 {[%clk 0:00:04]} 72. e7 {[%clk 0:00:53]}  g4 {[%clk 0:00:05]} 73. e8=Q {[%clk 0:00:53]}  Kg5 {[%clk 0:00:03]} 74. Qe5+ {[%clk 0:00:53]} 1-0


[Site "https://www.chess.com"]

[Event "Titled Tuesday Blitz July 4 Late 2023"]
[White "Bluebaum, Matthias"]
[Black "Chigaev, Maksim"]
[WhiteFideId "24651516"]
[BlackFideId "4108116"]
[WhiteElo "3042"]
[BlackElo "2942"]
[Result "1-0"]
[Round "11"]
[TimeControl "180+2"]
[Date "2023.07.04"]
[WhiteClock "0:00:23"]
[BlackClock "0:00:00"]
[Board "4"]

1. d4 {[%clk 0:03:00]}  Nf6 {[%clk 0:03:00]} 2. c4 {[%clk 0:03:00]}  g6 {[%clk 0:03:01]} 3. Nc3 {[%clk 0:03:01]}  Bg7 {[%clk 0:03:01]} 4. e4 {[%clk 0:03:01]}  d6 {[%clk 0:03:02]} 5. Nf3 {[%clk 0:03:02]}  O-O {[%clk 0:03:03]} 6. Be2 {[%clk 0:03:03]}  e5 {[%clk 0:03:03]} 7. Be3 {[%clk 0:03:03]}  Na6 {[%clk 0:02:54]} 8. O-O {[%clk 0:03:03]}  Qe7 {[%clk 0:02:47]} 9. dxe5 {[%clk 0:02:44]}  dxe5 {[%clk 0:02:45]} 10. Nd5 {[%clk 0:02:34]}  Qd8 {[%clk 0:02:45]} 11. Qc2 {[%clk 0:02:29]}  Ng4 {[%clk 0:02:41]} 12. Rad1 {[%clk 0:02:25]}  Nxe3 {[%clk 0:02:10]} 13. Nxe3 {[%clk 0:02:26]}  Qe7 {[%clk 0:01:54]} 14. Nd5 {[%clk 0:02:24]}  Qe8 {[%clk 0:01:37]} 15. c5 {[%clk 0:02:23]}  c6 {[%clk 0:01:38]} 16. Ne3 {[%clk 0:02:15]}  Nc7 {[%clk 0:01:38]} 17. Nc4 {[%clk 0:02:15]}  Qe7 {[%clk 0:01:22]} 18. Nd6 {[%clk 0:02:15]}  Ne6 {[%clk 0:00:59]} 19. Bc4 {[%clk 0:02:08]}  Nf4 {[%clk 0:00:26]} 20. Qb3 {[%clk 0:02:02]}  Bg4 {[%clk 0:00:23]} 21. h3 {[%clk 0:02:02]}  Bh5 {[%clk 0:00:17]} 22. Kh2 {[%clk 0:02:02]}  Bxf3 {[%clk 0:00:10]} 23. Qxf3 {[%clk 0:02:03]}  b5 {[%clk 0:00:11]} 24. Bb3 {[%clk 0:01:53]}  a5 {[%clk 0:00:11]} 25. a3 {[%clk 0:01:43]}  Ne6 {[%clk 0:00:11]} 26. Bxe6 {[%clk 0:01:39]}  Qxe6 {[%clk 0:00:12]} 27. Rd3 {[%clk 0:01:35]}  f5 {[%clk 0:00:12]} 28. exf5 {[%clk 0:01:29]}  gxf5 {[%clk 0:00:12]} 29. Qxc6 {[%clk 0:01:30]}  e4 {[%clk 0:00:12]} 30. Qd5 {[%clk 0:01:18]}  Qxd5 {[%clk 0:00:11]} 31. Rxd5 {[%clk 0:01:19]}  Bxb2 {[%clk 0:00:11]} 32. Nxb5 {[%clk 0:01:20]}  f4 {[%clk 0:00:09]} 33. c6 {[%clk 0:01:19]}  e3 {[%clk 0:00:10]} 34. fxe3 {[%clk 0:01:16]}  fxe3 {[%clk 0:00:11]} 35. Re1 {[%clk 0:01:16]}  Rae8 {[%clk 0:00:09]} 36. c7 {[%clk 0:01:11]}  Be5+ {[%clk 0:00:09]} 37. Rxe5 {[%clk 0:01:00]}  Rxe5 {[%clk 0:00:09]} 38. Nd6 {[%clk 0:01:01]}  Rc5 {[%clk 0:00:09]} 39. c8=Q {[%clk 0:01:02]}  Rfxc8 {[%clk 0:00:09]} 40. Nxc8 {[%clk 0:01:03]}  Rxc8 {[%clk 0:00:09]} 41. Rxe3 {[%clk 0:01:04]}  Rc4 {[%clk 0:00:08]} 42. g4 {[%clk 0:00:39]}  Kf7 {[%clk 0:00:07]} 43. Kg3 {[%clk 0:00:40]}  Kg6 {[%clk 0:00:02]} 44. Kh4 {[%clk 0:00:40]}  a4 {[%clk 0:00:01]} 45. Re6+ {[%clk 0:00:40]}  Kg7 {[%clk 0:00:02]} 46. Ra6 {[%clk 0:00:41]}  Rd4 {[%clk 0:00:02]} 47. Kh5 {[%clk 0:00:40]}  Rd3 {[%clk 0:00:03]} 48. Ra7+ {[%clk 0:00:40]}  Kg8 {[%clk 0:00:03]} 49. Rxa4 {[%clk 0:00:25]}  Rxh3+ {[%clk 0:00:03]} 50. Kg5 {[%clk 0:00:25]}  Rb3 {[%clk 0:00:02]} 51. Ra7 {[%clk 0:00:22]}  Rb5+ {[%clk 0:00:00]} 52. Kh4 {[%clk 0:00:23]} 1-0


[Site "https://www.chess.com"]

[Event "Titled Tuesday Blitz July 4 Late 2023"]
[White "Xiong, Jeffery"]
[Black "Lazavik, Denis"]
[WhiteFideId "2047640"]
[BlackFideId "13515110"]
[WhiteElo "2954"]
[BlackElo "3048"]
[Result "1-0"]
[Round "11"]
[TimeControl "180+2"]
[Date "2023.07.04"]
[WhiteClock "0:00:20"]
[BlackClock "0:00:01"]
[Board "7"]

1. e4 {[%clk 0:03:00]}  c5 {[%clk 0:03:00]} 2. Nf3 {[%clk 0:03:01]}  e6 {[%clk 0:03:01]} 3. c3 {[%clk 0:03:01]}  d5 {[%clk 0:03:01]} 4. e5 {[%clk 0:03:02]}  d4 {[%clk 0:02:58]} 5. g3 {[%clk 0:03:03]}  Nc6 {[%clk 0:02:49]} 6. Bg2 {[%clk 0:03:03]}  d3 {[%clk 0:02:49]} 7. O-O {[%clk 0:03:03]}  Rb8 {[%clk 0:02:49]} 8. a4 {[%clk 0:02:53]}  a6 {[%clk 0:02:49]} 9. Re1 {[%clk 0:02:51]}  b5 {[%clk 0:02:43]} 10. axb5 {[%clk 0:02:52]}  axb5 {[%clk 0:02:44]} 11. b3 {[%clk 0:02:48]}  Nh6 {[%clk 0:02:38]} 12. c4 {[%clk 0:02:46]}  bxc4 {[%clk 0:02:27]} 13. bxc4 {[%clk 0:02:46]}  Be7 {[%clk 0:02:27]} 14. Ba3 {[%clk 0:02:43]}  O-O {[%clk 0:02:25]} 15. Nc3 {[%clk 0:02:43]}  Nb4 {[%clk 0:02:25]} 16. Rb1 {[%clk 0:02:38]}  Bb7 {[%clk 0:02:24]} 17. Bxb4 {[%clk 0:02:20]}  cxb4 {[%clk 0:02:23]} 18. Nb5 {[%clk 0:02:21]}  Nf5 {[%clk 0:02:16]} 19. Qb3 {[%clk 0:02:19]}  Bc5 {[%clk 0:02:11]} 20. Qd1 {[%clk 0:01:48]}  f6 {[%clk 0:02:02]} 21. Rb3 {[%clk 0:01:32]}  Qb6 {[%clk 0:01:51]} 22. Rf1 {[%clk 0:01:31]}  fxe5 {[%clk 0:01:23]} 23. Nxe5 {[%clk 0:01:28]}  Bxg2 {[%clk 0:00:32]} 24. Kxg2 {[%clk 0:01:29]}  Bxf2 {[%clk 0:00:33]} 25. Rxd3 {[%clk 0:01:25]}  Bc5 {[%clk 0:00:27]} 26. Kh3 {[%clk 0:01:12]}  Rbd8 {[%clk 0:00:21]} 27. Rd7 {[%clk 0:01:04]}  Rfe8 {[%clk 0:00:07]} 28. Qh5 {[%clk 0:00:42]}  Re7 {[%clk 0:00:07]} 29. Rxe7 {[%clk 0:00:39]}  Bxe7 {[%clk 0:00:07]} 30. Rxf5 {[%clk 0:00:37]}  exf5 {[%clk 0:00:07]} 31. Qf7+ {[%clk 0:00:37]}  Kh8 {[%clk 0:00:08]} 32. Qxe7 {[%clk 0:00:38]}  Qh6+ {[%clk 0:00:08]} 33. Qh4 {[%clk 0:00:38]}  Qxh4+ {[%clk 0:00:05]} 34. Kxh4 {[%clk 0:00:35]}  Rxd2 {[%clk 0:00:05]} 35. c5 {[%clk 0:00:33]}  Rc2 {[%clk 0:00:05]} 36. c6 {[%clk 0:00:25]}  Rc5 {[%clk 0:00:05]} 37. c7 {[%clk 0:00:25]}  b3 {[%clk 0:00:04]} 38. Nd3 {[%clk 0:00:25]}  Rc2 {[%clk 0:00:03]} 39. Kg5 {[%clk 0:00:25]}  g6 {[%clk 0:00:03]} 40. Kf6 {[%clk 0:00:25]}  Kg8 {[%clk 0:00:03]} 41. Ke7 {[%clk 0:00:25]}  g5 {[%clk 0:00:04]} 42. Kd6 {[%clk 0:00:19]}  Kf7 {[%clk 0:00:02]} 43. Nc5 {[%clk 0:00:19]}  b2 {[%clk 0:00:01]} 44. c8=Q {[%clk 0:00:20]}  b1=Q {[%clk 0:00:02]} 45. Qxf5+ {[%clk 0:00:20]}  Kg7 {[%clk 0:00:01]} 46. Ne6+ {[%clk 0:00:20]} 1-0


[Site "https://www.chess.com"]

[Event "Titled Tuesday Blitz July 4 Late 2023"]
[White "Deac, Bogdan-Daniel"]
[Black "Oparin, Grigoriy"]
[WhiteFideId "1226380"]
[BlackFideId "24125890"]
[WhiteElo "2987"]
[BlackElo "2942"]
[Result "1-0"]
[Round "11"]
[TimeControl "180+2"]
[Date "2023.07.04"]
[WhiteClock "0:00:06"]
[BlackClock "0:00:14"]
[Board "8"]

1. e4 {[%clk 0:02:55]}  e5 {[%clk 0:03:00]} 2. Nf3 {[%clk 0:02:55]}  Nc6 {[%clk 0:03:01]} 3. Bb5 {[%clk 0:02:56]}  a6 {[%clk 0:03:01]} 4. Bxc6 {[%clk 0:02:55]}  dxc6 {[%clk 0:03:01]} 5. Nc3 {[%clk 0:02:56]}  f6 {[%clk 0:02:54]} 6. d4 {[%clk 0:02:56]}  exd4 {[%clk 0:02:55]} 7. Qxd4 {[%clk 0:02:57]}  Qxd4 {[%clk 0:02:54]} 8. Nxd4 {[%clk 0:02:57]}  Bd7 {[%clk 0:02:42]} 9. Be3 {[%clk 0:02:57]}  Bb4 {[%clk 0:02:40]} 10. Ne2 {[%clk 0:02:53]}  O-O-O {[%clk 0:02:40]} 11. O-O-O {[%clk 0:02:52]}  Ne7 {[%clk 0:02:39]} 12. Na4 {[%clk 0:02:45]}  Ng6 {[%clk 0:02:02]} 13. Nc5 {[%clk 0:02:36]}  Bxc5 {[%clk 0:01:56]} 14. Bxc5 {[%clk 0:02:35]}  b6 {[%clk 0:01:56]} 15. Be3 {[%clk 0:02:33]}  c5 {[%clk 0:01:56]} 16. h4 {[%clk 0:02:27]}  h5 {[%clk 0:01:50]} 17. f3 {[%clk 0:02:24]}  Be6 {[%clk 0:01:47]} 18. Rxd8+ {[%clk 0:02:11]}  Rxd8 {[%clk 0:01:48]} 19. Ng3 {[%clk 0:02:03]}  Rh8 {[%clk 0:01:48]} 20. b3 {[%clk 0:01:59]}  a5 {[%clk 0:01:48]} 21. a3 {[%clk 0:01:59]}  Ne5 {[%clk 0:01:39]} 22. Bf4 {[%clk 0:01:53]}  Ng6 {[%clk 0:01:39]} 23. Bd2 {[%clk 0:01:53]}  Kd7 {[%clk 0:01:37]} 24. Bc3 {[%clk 0:01:36]}  Kc6 {[%clk 0:01:35]} 25. Kb2 {[%clk 0:01:35]}  Nf4 {[%clk 0:01:32]} 26. Rh2 {[%clk 0:01:31]}  Ng6 {[%clk 0:01:32]} 27. Nf1 {[%clk 0:01:23]}  Rd8 {[%clk 0:01:29]} 28. Ne3 {[%clk 0:01:22]}  c4 {[%clk 0:01:11]} 29. bxc4 {[%clk 0:00:54]}  Kc5 {[%clk 0:01:12]} 30. g4 {[%clk 0:00:54]}  hxg4 {[%clk 0:00:50]} 31. fxg4 {[%clk 0:00:49]}  Bxc4 {[%clk 0:00:47]} 32. h5 {[%clk 0:00:26]}  Ne5 {[%clk 0:00:47]} 33. Bxe5 {[%clk 0:00:09]}  fxe5 {[%clk 0:00:48]} 34. Nf5 {[%clk 0:00:09]}  Rg8 {[%clk 0:00:41]} 35. g5 {[%clk 0:00:08]}  Bf7 {[%clk 0:00:20]} 36. g6 {[%clk 0:00:07]}  Be6 {[%clk 0:00:14]} 37. Nxg7 {[%clk 0:00:06]} 1-0


[Site "https://www.chess.com"]

[Event "Titled Tuesday Blitz July 4 Late 2023"]
[White "Golubev, Mikhail"]
[Black "Indjic, Aleksandar"]
[WhiteFideId "14100983"]
[BlackFideId "911925"]
[WhiteElo "2603"]
[BlackElo "2973"]
[Result "1/2-1/2"]
[Round "11"]
[TimeControl "180+2"]
[Date "2023.07.04"]
[WhiteClock "0:00:06"]
[BlackClock "0:00:02"]
[Board "10"]

1. e4 {[%clk 0:03:00]}  e5 {[%clk 0:02:59]} 2. Nf3 {[%clk 0:03:00]}  Nc6 {[%clk 0:03:00]} 3. Bc4 {[%clk 0:03:00]}  Nf6 {[%clk 0:02:59]} 4. Ng5 {[%clk 0:03:00]}  d5 {[%clk 0:02:59]} 5. exd5 {[%clk 0:03:00]}  b5 {[%clk 0:02:58]} 6. Bf1 {[%clk 0:02:59]}  Nxd5 {[%clk 0:02:56]} 7. d4 {[%clk 0:02:52]}  exd4 {[%clk 0:02:51]} 8. Bxb5 {[%clk 0:02:48]}  Bb7 {[%clk 0:02:51]} 9. O-O {[%clk 0:02:44]}  Be7 {[%clk 0:02:43]} 10. Nf3 {[%clk 0:02:40]}  O-O {[%clk 0:02:38]} 11. Nxd4 {[%clk 0:02:31]}  Nxd4 {[%clk 0:02:31]} 12. Qxd4 {[%clk 0:02:32]}  c5 {[%clk 0:02:26]} 13. Qe4 {[%clk 0:02:23]}  Qc7 {[%clk 0:02:24]} 14. Bd3 {[%clk 0:02:21]}  Nf6 {[%clk 0:02:21]} 15. Qf4 {[%clk 0:02:18]}  Bd6 {[%clk 0:02:19]} 16. Qh4 {[%clk 0:02:18]}  Rfe8 {[%clk 0:02:11]} 17. Na3 {[%clk 0:02:13]}  Re5 {[%clk 0:01:49]} 18. Bg5 {[%clk 0:02:02]}  Rxg5 {[%clk 0:01:44]} 19. Qxg5 {[%clk 0:02:02]}  Bxh2+ {[%clk 0:01:45]} 20. Kh1 {[%clk 0:02:02]}  Bf4 {[%clk 0:01:45]} 21. Qf5 {[%clk 0:01:47]}  Rd8 {[%clk 0:01:38]} 22. Rae1 {[%clk 0:01:43]}  Rd5 {[%clk 0:01:27]} 23. Re8+ {[%clk 0:01:16]}  Nxe8 {[%clk 0:01:24]} 24. Qxh7+ {[%clk 0:01:15]}  Kf8 {[%clk 0:01:24]} 25. Qh8+ {[%clk 0:01:11]}  Ke7 {[%clk 0:01:24]} 26. Nc4 {[%clk 0:01:02]}  Nf6 {[%clk 0:00:50]} 27. Re1+ {[%clk 0:01:00]}  Kd7 {[%clk 0:00:50]} 28. Qxg7 {[%clk 0:00:35]}  Rh5+ {[%clk 0:00:40]} 29. Kg1 {[%clk 0:00:34]}  Qc6 {[%clk 0:00:14]} 30. Qxf7+ {[%clk 0:00:30]}  Kc8 {[%clk 0:00:15]} 31. Qf8+ {[%clk 0:00:24]}  Kc7 {[%clk 0:00:15]} 32. Qf7+ {[%clk 0:00:24]}  Nd7 {[%clk 0:00:14]} 33. Qxf4+ {[%clk 0:00:23]}  Kd8 {[%clk 0:00:15]} 34. Be4 {[%clk 0:00:20]}  Qc7 {[%clk 0:00:15]} 35. Qxc7+ {[%clk 0:00:19]}  Kxc7 {[%clk 0:00:16]} 36. Bxb7 {[%clk 0:00:19]}  Kxb7 {[%clk 0:00:17]} 37. f3 {[%clk 0:00:19]}  Kc7 {[%clk 0:00:17]} 38. Kf2 {[%clk 0:00:19]}  Rh4 {[%clk 0:00:17]} 39. Re4 {[%clk 0:00:19]}  Rh1 {[%clk 0:00:17]} 40. Ne3 {[%clk 0:00:18]}  Rb1 {[%clk 0:00:15]} 41. b3 {[%clk 0:00:18]}  Rb2 {[%clk 0:00:15]} 42. a4 {[%clk 0:00:18]}  Nf6 {[%clk 0:00:15]} 43. Rf4 {[%clk 0:00:17]}  Nd7 {[%clk 0:00:15]} 44. g4 {[%clk 0:00:17]}  Ne5 {[%clk 0:00:15]} 45. g5 {[%clk 0:00:16]}  Nd3+ {[%clk 0:00:16]} 46. Kg3 {[%clk 0:00:16]}  Nxf4 {[%clk 0:00:16]} 47. Kxf4 {[%clk 0:00:17]}  Kd7 {[%clk 0:00:17]} 48. Kf5 {[%clk 0:00:14]}  Ke8 {[%clk 0:00:16]} 49. f4 {[%clk 0:00:12]}  c4 {[%clk 0:00:17]} 50. Nxc4 {[%clk 0:00:11]}  Rxc2 {[%clk 0:00:16]} 51. g6 {[%clk 0:00:12]}  Kf8 {[%clk 0:00:17]} 52. Ne5 {[%clk 0:00:11]}  Kg7 {[%clk 0:00:14]} 53. Ke6 {[%clk 0:00:10]}  Rc8 {[%clk 0:00:13]} 54. f5 {[%clk 0:00:09]}  Re8+ {[%clk 0:00:13]} 55. Kd6 {[%clk 0:00:09]}  Kf6 {[%clk 0:00:13]} 56. Ng4+ {[%clk 0:00:08]}  Kxf5 {[%clk 0:00:13]} 57. Kd7 {[%clk 0:00:07]}  Rb8 {[%clk 0:00:12]} 58. Kc7 {[%clk 0:00:05]}  Re8 {[%clk 0:00:09]} 59. Ne3+ {[%clk 0:00:05]}  Rxe3 {[%clk 0:00:08]} 60. b4 {[%clk 0:00:05]}  Re7+ {[%clk 0:00:07]} 61. Kb8 {[%clk 0:00:04]}  Kxg6 {[%clk 0:00:06]} 62. b5 {[%clk 0:00:04]}  Kf5 {[%clk 0:00:06]} 63. a5 {[%clk 0:00:04]}  Ke6 {[%clk 0:00:06]} 64. b6 {[%clk 0:00:05]}  axb6 {[%clk 0:00:06]} 65. axb6 {[%clk 0:00:05]}  Kd6 {[%clk 0:00:06]} 66. b7 {[%clk 0:00:06]}  Kc6 {[%clk 0:00:05]} 67. Ka8 {[%clk 0:00:06]}  Rxb7 {[%clk 0:00:02]} 1/2-1/2


[Site "https://www.chess.com"]

[Event "Titled Tuesday Blitz July 4 Late 2023"]
[White "Skatchkov, Valery"]
[Black "Oro, Faustino"]
[WhiteFideId "24195812"]
[BlackFideId "20000197"]
[WhiteElo "2683"]
[BlackElo "2810"]
[Result "0-1"]
[Round "11"]
[TimeControl "180+2"]
[Date "2023.07.04"]
[WhiteClock "0:01:12"]
[BlackClock "0:00:15"]
[Board "16"]

1. d4 {[%clk 0:02:59]}  Nf6 {[%clk 0:02:59]} 2. c4 {[%clk 0:02:59]}  e6 {[%clk 0:02:59]} 3. Nf3 {[%clk 0:03:00]}  d5 {[%clk 0:02:57]} 4. g3 {[%clk 0:03:00]}  Be7 {[%clk 0:02:56]} 5. Bg2 {[%clk 0:03:01]}  O-O {[%clk 0:02:57]} 6. Nc3 {[%clk 0:03:01]}  c6 {[%clk 0:02:45]} 7. O-O {[%clk 0:03:00]}  Nbd7 {[%clk 0:02:45]} 8. Qd3 {[%clk 0:02:59]}  b6 {[%clk 0:02:44]} 9. e4 {[%clk 0:03:00]}  dxe4 {[%clk 0:02:45]} 10. Nxe4 {[%clk 0:03:00]}  Nxe4 {[%clk 0:02:46]} 11. Qxe4 {[%clk 0:03:00]}  Bb7 {[%clk 0:02:46]} 12. Bf4 {[%clk 0:02:59]}  Nf6 {[%clk 0:02:45]} 13. Qe1 {[%clk 0:03:00]}  c5 {[%clk 0:02:43]} 14. Rd1 {[%clk 0:02:57]}  cxd4 {[%clk 0:02:32]} 15. Nxd4 {[%clk 0:02:58]}  Bxg2 {[%clk 0:02:27]} 16. Kxg2 {[%clk 0:02:59]}  Qc8 {[%clk 0:02:26]} 17. Qe2 {[%clk 0:02:59]}  Rd8 {[%clk 0:02:20]} 18. b3 {[%clk 0:02:59]}  Bc5 {[%clk 0:02:16]} 19. Nb5 {[%clk 0:02:48]}  a6 {[%clk 0:01:58]} 20. Rxd8+ {[%clk 0:02:44]}  Qxd8 {[%clk 0:01:58]} 21. Rd1 {[%clk 0:02:45]}  Qe7 {[%clk 0:01:54]} 22. Nc7 {[%clk 0:02:40]}  Ra7 {[%clk 0:01:53]} 23. Qd3 {[%clk 0:02:39]}  h6 {[%clk 0:01:32]} 24. Qd8+ {[%clk 0:02:39]}  Kh7 {[%clk 0:01:33]} 25. Qb8 {[%clk 0:02:38]}  e5 {[%clk 0:01:27]} 26. Qxa7 {[%clk 0:01:56]}  exf4 {[%clk 0:01:26]} 27. Qb7 {[%clk 0:01:56]}  Ne8 {[%clk 0:01:15]} 28. Qc6 {[%clk 0:01:35]}  Nxc7 {[%clk 0:01:02]} 29. Rd7 {[%clk 0:01:35]}  Qe2 {[%clk 0:00:35]} 30. Rxc7 {[%clk 0:01:35]}  Qxf2+ {[%clk 0:00:35]} 31. Kh3 {[%clk 0:01:35]}  fxg3 {[%clk 0:00:33]} 32. hxg3 {[%clk 0:01:23]}  Qf1+ {[%clk 0:00:27]} 33. Qg2 {[%clk 0:01:22]}  Qf5+ {[%clk 0:00:26]} 34. Kh2 {[%clk 0:01:22]}  Qh5+ {[%clk 0:00:20]} 35. Qh3 {[%clk 0:01:23]}  Qe2+ {[%clk 0:00:20]} 36. Qg2 {[%clk 0:01:23]}  Qh5+ {[%clk 0:00:21]} 37. Qh3 {[%clk 0:01:24]}  Qg6 {[%clk 0:00:19]} 38. Rd7 {[%clk 0:01:18]}  Qc2+ {[%clk 0:00:17]} 39. Qg2 {[%clk 0:01:18]}  Qg6 {[%clk 0:00:16]} 40. Rd2 {[%clk 0:01:17]}  Be3 {[%clk 0:00:15]} 41. Re2 {[%clk 0:01:12]}  Qh5+ {[%clk 0:00:15]} 0-1


[Site "https://www.chess.com"]